fUST/lending_fUST_20250814
["ID","MTS","AMOUNT","RATE_DAILY","PERIOD"]
[379168521,1755173457367,-2535.14,0.00017534,2]
[379168522,1755173457376,-460.0,0.00017534,2]
[379168523,1755173457385,-485.0,0.00017534,2]
[379168524,1755173457394,-1374.93,0.00017534,2]
[379168525,1755173457404,-5332.7,0.00017534,2]
[379168526,1755173457413,-906.21,0.00017534,2]
[379168527,1755173457422,-240.90303601,0.00017534,2]
[379168528,1755173457431,-598.12,0.00017534,2]
[379168529,1755173457440,-966.29,0.00017534,2]
[379168530,1755173457449,-912.08,0.00017534,2]
[379168531,1755173457459,-1753.28,0.00017534,2]
[379168532,1755173457468,-531.73,0.00017534,2]
[379168533,1755173457477,-1165.7,0.00017534,2]
[379168534,1755173457486,-584.07,0.00017534,2]
[379168535,1755173457496,-542.11,0.00017534,2]
[379168536,1755173457506,-511.86331635,0.00017534,2]
[379168537,1755173457516,-460.0,0.00017534,2]
[379168538,1755173457525,-460.0,0.00017534,2]
[379168539,1755173457534,-508.42,0.00017534,2]
[379168540,1755173457543,-873.96,0.00017534,2]
[379168541,1755173457553,-2259.45,0.00017534,2]
[379168542,1755173457562,-460.0,0.00017534,2]
[379168543,1755173457571,-965.29,0.00017534,2]
[379168544,1755173457581,-802.39,0.00017534,2]
[379168545,1755173457591,-1231.01,0.00017534,2]
[379168546,1755173457599,-668.33,0.00017534,2]
[379168547,1755173457609,-460.0,0.00017534,2]
[379168548,1755173457618,-3475.27,0.00017534,2]
[379168549,1755173457628,-13967.02,0.00017534,2]
[379168550,1755173457637,-1204.11,0.00017534,2]
[379168551,1755173457646,-463.7,0.00017534,2]
[379168552,1755173457656,-2110.81,0.00017534,2]
[379168553,1755173457665,-948.94,0.00017534,2]
[379168554,1755173457675,-10303.06,0.00017534,2]
[379168555,1755173457684,-328.55394552,0.00017534,2]
[379168556,1755173457693,-460.0,0.00017534,2]
[379168557,1755173457702,-2234.48,0.00017534,2]
[379168558,1755173457711,-3603.74,0.00017534,2]
[379168559,1755173457721,-650.55,0.00017534,2]
[379168560,1755173457730,-594.01,0.00017534,2]
[379168561,1755173457740,-1578.8,0.00017534,2]
[379168562,1755173457749,-1187.02,0.00017534,2]
[379168563,1755173457758,-896.46,0.00017534,2]
[379168564,1755173457767,-460.0,0.00017534,2]
[379168565,1755173457776,-460.0,0.00017534,2]
[379168566,1755173457785,-460.0,0.00017534,2]
[379168567,1755173457794,-460.0,0.00017534,2]
[379168568,1755173457803,-460.0,0.00017534,2]
[379168569,1755173457812,-2265.14,0.00017534,2]
[379168570,1755173457821,-460.0,0.00017534,2]
[379168571,1755173457831,-1367.49,0.00017534,2]
[379168572,1755173457840,-1137.36,0.00017534,2]
[379168573,1755173457849,-487.15,0.00017534,2]
[379168574,1755173457858,-1417.77267933,0.00017534,2]
[379168575,1755173458179,-7513.88732067,0.00017534,2]
[379168576,1755173458189,-640.56,0.00017534,2]
[379168577,1755173458198,-460.0,0.00017534,2]
[379168578,1755173458207,-705.25,0.00017534,2]
[379168579,1755173458216,-1136.05,0.00017534,2]
[379168580,1755173458225,-460.0,0.00017534,2]
[379168581,1755173458234,-1263.37,0.00017534,2]
[379168582,1755173458244,-460.0,0.00017534,2]
[379168583,1755173458253,-612.8,0.00017534,2]
[379168584,1755173458262,-2176.31,0.00017534,2]
[379168585,1755173458271,-716.96,0.00017534,2]
[379168586,1755173458280,-460.0,0.00017534,2]
[379168587,1755173458290,-221.254599,0.00017547,2]
[379168588,1755173458299,-739.77,0.00017547,2]
[379168589,1755173458308,-500.0,0.00017573,2]
[379168590,1755173458317,-500.0,0.00017573,2]
[379168591,1755173458326,-500.0,0.00017573,2]
[379168592,1755173458337,-500.0,0.00017573,2]
[379168593,1755173458347,-157.54113394,0.00017573,2]
[379168594,1755173458356,-500.0,0.00017573,2]
[379168595,1755173458366,-500.0,0.00017573,2]
[379168596,1755173458374,-500.0,0.00017573,2]
[379168597,1755173458383,-500.0,0.00017573,2]
[379168598,1755173458393,-500.0,0.00017573,2]
[379168599,1755173458402,-500.47983404,0.00017573,2]
[379168600,1755173458411,-500.0,0.00017573,2]
[379168601,1755173458421,-195.420939,0.00017573,2]
[379168602,1755173458430,-195.420939,0.00017573,2]
[379168603,1755173458440,-558.92523435,0.00017581,2]
[379168604,1755173458916,-0.61084279,0.00017581,2]
[379168605,1755173506208,6241.75275581,0.00015763,2]
[379168606,1755173506232,3758.24724419,0.00015763,2]
[379168607,1755173538149,796.901207,0.00015663,2]
[379168609,1755173578672,-300.0,0.00016436,2]
[379168610,1755173578695,-460.0,0.00016438,2]
[379168611,1755173578715,-460.0,0.00016438,2]
[379168612,1755173578737,-1452.26,0.00016438,2]
[379168613,1755173578758,-1088.49,0.00016438,2]
[379168614,1755173578779,-460.0,0.00016438,2]
[379168615,1755173578799,-460.0,0.00016438,2]
[379168616,1755173578820,-460.0,0.00016438,2]
[379168617,1755173578842,-460.0,0.00016438,2]
[379168618,1755173578863,-460.0,0.00016438,2]
[379168619,1755173578884,-743.9,0.00016438,2]
[379168620,1755173578904,-654.44,0.00016438,2]
[379168621,1755173578925,-1455.2,0.00016438,2]
[379168622,1755173578947,-4309.86,0.00016438,2]
[379168623,1755173578968,-460.0,0.00016438,2]
[379168624,1755173578989,-1457.11,0.00016438,2]
[379168625,1755173579009,-741.86,0.00016438,2]
[379168626,1755173579032,-1056.59,0.00016438,2]
[379168627,1755173579052,-1388.02,0.00016438,2]
[379168628,1755173579073,-1260.47,0.00016438,2]
[379168629,1755173579093,-460.0,0.00016438,2]
[379168630,1755173579300,-453.48577389,0.00016438,2]
[379168631,1755173579320,-460.0,0.00016438,2]
[379168632,1755173579340,-460.0,0.00016438,2]
[379168633,1755173579360,-460.0,0.00016438,2]
[379168634,1755173579382,-615.81,0.00016438,2]
[379168635,1755173579402,-832.01,0.00016438,2]
[379168636,1755173579423,-1199.79,0.00016438,2]
[379168637,1755173579443,-960.61,0.00016438,2]
[379168638,1755173579465,-460.0,0.00016438,2]
[379168639,1755173579485,-460.0,0.00016438,2]
[379168640,1755173579506,-897.83,0.00016438,2]
[379168641,1755173579526,-460.0,0.00016438,2]
[379168642,1755173579549,-460.0,0.00016438,2]
[379168643,1755173579569,-460.0,0.00016438,2]
[379168644,1755173579591,-3421.33,0.00016438,2]
[379168645,1755173579612,-1918.76,0.00016438,2]
[379168646,1755173579635,-714.07,0.00016438,2]
[379168647,1755173579655,-8156.59,0.00016438,2]
[379168648,1755173579675,-596.92,0.00016438,2]
[379168649,1755173579698,-1713.16,0.00016438,2]
[379168650,1755173579722,-1821.94,0.00016438,2]
[379168651,1755173579743,-2941.38,0.00016438,2]
[379168652,1755173579764,-2803.43,0.00016438,2]
[379168653,1755173579785,-625.65,0.00016438,2]
[379168654,1755173579806,-460.0,0.00016438,2]
[379168655,1755173579827,-6139.03422611,0.00016438,2]
[379168656,1755173593069,156.426133,0.00023,30]
[379168658,1755173863903,10189.50649709,0.00023,30]
[379168661,1755174105298,606.81,0.00023,30]
[379168663,1755174251480,886.636948,0.00013699,2]
[379168685,1755174504399,398.450603,0.00015487,2]
[379168693,1755174518759,769.84705047,0.0002,120]
[379168735,1755174631971,-1145.0,0.00016427,2]
[379168736,1755174631981,-300.0,0.00016427,2]
[379168737,1755174631990,-1600.23,0.00016428,3]
[379168738,1755174632000,-800.11,0.00016428,3]
[379168740,1755174632010,-400.06,0.00016428,3]
[379168741,1755174632019,-200.03,0.00016428,3]
[379168743,1755174632029,-600.11,0.00016428,3]
[379168744,1755174632039,-477.28775672,0.00016437,2]
[379168745,1755174632048,-500.0,0.00016437,2]
[379168746,1755174632058,-500.0,0.00016437,2]
[379168747,1755174632068,-500.0,0.00016437,2]
[379168748,1755174632078,-446.29433378,0.00016437,2]
[379168749,1755174632088,-216.25492597,0.00016437,2]
[379168750,1755174632098,-2293.94204413,0.00016437,2]
[379168751,1755174632110,-699.79020707,0.00016437,2]
[379168752,1755174632128,-1074.74166481,0.00016437,2]
[379168753,1755174632140,-424.76848795,0.00016437,2]
[379168754,1755174632151,-13481.3981585,0.00016437,2]
[379168755,1755174632162,-2559.04821411,0.00016437,2]
[379168756,1755174632171,-171.53992248,0.00016437,2]
[379168757,1755174632181,-321.42761114,0.00016437,2]
[379168759,1755174632190,-460.0,0.00016438,2]
[379168761,1755174632200,-460.0,0.00016438,2]
[379168763,1755174632209,-460.0,0.00016438,2]
[379168765,1755174632218,-460.0,0.00016438,2]
[379168767,1755174632227,-360.76638772,0.00016438,2]
[379168769,1755174632238,-125.02361228,0.00016438,2]
[379168771,1755174632247,-460.0,0.00016438,2]
[379168773,1755174632257,-466.99,0.00016438,2]
[379168775,1755174632267,-460.0,0.00016438,2]
[379168777,1755174632276,-460.0,0.00016438,2]
[379168778,1755174632285,-460.0,0.00016438,2]
[379168779,1755174632294,-460.0,0.00016438,2]
[379168780,1755174632303,-460.0,0.00016438,2]
[379168781,1755174632313,-581.8801621,0.00016438,2]
[379168783,1755174632322,-460.0,0.00016438,2]
[379168785,1755174632332,-460.0,0.00016438,2]
[379168787,1755174632342,-460.0,0.00016438,2]
[379168788,1755174632352,-508.09,0.00016438,2]
[379168789,1755174632361,-460.0,0.00016438,2]
[379168791,1755174632370,-561.5,0.00016438,2]
[379168793,1755174632385,-528.21,0.00016438,2]
[379168795,1755174632394,-496.25,0.00016438,2]
[379168796,1755174632404,-460.0,0.00016438,2]
[379168798,1755174632413,-460.0,0.00016438,2]
[379168799,1755174632423,-684.84,0.00016438,2]
[379168800,1755174632431,-460.0,0.00016438,2]
[379168801,1755174632440,-460.0,0.00016438,2]
[379168802,1755174632450,-460.0,0.00016438,2]
[379168803,1755174632459,-460.0,0.00016438,2]
[379168804,1755174632469,-589.37,0.00016438,2]
[379168805,1755174632478,-586.77,0.00016438,2]
[379168806,1755174632487,-460.0,0.00016438,2]
[379168807,1755174632497,-879.58,0.00016438,2]
[379168808,1755174632506,-395.47839851,0.00016438,2]
[379168809,1755174632524,-64.52160149,0.00016438,2]
[379168810,1755174632533,-460.0,0.00016438,2]
[379168811,1755174632543,-521.43,0.00016438,2]
[379168812,1755174632552,-460.0,0.00016438,2]
[379168813,1755174632561,-572.05,0.00016438,2]
[379168814,1755174632570,-460.0,0.00016438,2]
[379168815,1755174632579,-596.65,0.00016438,2]
[379168816,1755174632589,-1746.03,0.00016438,2]
[379168817,1755174632598,-96.3396977,0.00016438,2]
[379168818,1755174632609,-463.66376798,0.00016438,2]
[379168898,1755174640070,-249.46653432,0.00016438,2]
[379168900,1755174640080,-460.0,0.00016438,2]
[379168901,1755174640090,-588.92,0.00016438,2]
[379168902,1755174640101,-460.0,0.00016438,2]
[379168903,1755174640112,-460.0,0.00016438,2]
[379168904,1755174640123,-460.0,0.00016438,2]
[379168905,1755174640143,-460.0,0.00016438,2]
[379168906,1755174640154,-541.39,0.00016438,2]
[379168907,1755174640164,-460.0,0.00016438,2]
[379168908,1755174640175,-719.46,0.00016438,2]
[379168909,1755174640185,-1417.47,0.00016438,2]
[379168910,1755174640195,-529.09,0.00016438,2]
[379168911,1755174640205,-460.0,0.00016438,2]
[379168912,1755174640214,-460.0,0.00016438,2]
[379168913,1755174640225,-206.84940194,0.00016438,2]
[379168914,1755174640236,-647.81,0.00016438,2]
[379168915,1755174640247,-609.31,0.00016438,2]
[379168916,1755174640258,-460.0,0.00016438,2]
[379168917,1755174640270,-460.0,0.00016438,2]
[379168918,1755174640281,-1000.06,0.00016438,2]
[379168919,1755174640292,-482.74680707,0.00016438,2]
[379168920,1755174640303,-1342.39,0.00016438,2]
[379168921,1755174640314,-460.0,0.00016438,2]
[379168922,1755174640327,-464.83018892,0.00016438,2]
[379168923,1755174640337,-1007.08,0.00016438,2]
[379168924,1755174640350,-960.3,0.00016438,2]
[379168925,1755174640361,-460.0,0.00016438,2]
[379168926,1755174640372,-599.58,0.00016438,2]
[379168927,1755174640392,-460.0,0.00016438,2]
[379168928,1755174640405,-460.0,0.00016438,2]
[379168929,1755174640421,-460.0,0.00016438,2]
[379168930,1755174640434,-887.78,0.00016438,2]
[379168931,1755174640445,-460.0,0.00016438,2]
[379168932,1755174640458,-460.0,0.00016438,2]
[379168933,1755174640468,-1116.63,0.00016438,2]
[379168934,1755174640481,-1303.08,0.00016438,2]
[379168935,1755174640491,-460.0,0.00016438,2]
[379168936,1755174640501,-290.34653919,0.00016438,2]
[379168937,1755174640513,-460.0,0.00016438,2]
[379168938,1755174640524,-460.0,0.00016438,2]
[379168939,1755174640536,-379.06498157,0.00016438,2]
[379168940,1755174640550,-467.25878383,0.00016438,2]
[379168941,1755174640563,-460.0,0.00016438,2]
[379168942,1755174640575,-460.0,0.00016438,2]
[379168943,1755174640586,-853.09,0.00016438,2]
[379168945,1755174640598,-460.0,0.00016438,2]
[379168947,1755174640610,-461.78775046,0.00016438,2]
[379168949,1755174640622,-651.41,0.00016438,2]
[379168951,1755174640644,-460.0,0.00016438,2]
[379168952,1755174640655,-651.57,0.00016438,2]
[379168953,1755174640666,-460.0,0.00016438,2]
[379168954,1755174640678,-1986.45,0.00016438,2]
[379168955,1755174640689,-460.0,0.00016438,2]
[379168956,1755174640699,-460.0,0.00016438,2]
[379168957,1755174640711,-1440.69,0.00016438,2]
[379168958,1755174640721,-2070.78,0.00016438,2]
[379168959,1755174640732,-1799.51,0.00016438,2]
[379168960,1755174640744,-863.26,0.00016438,2]
[379168961,1755174640755,-789.9,0.00016438,2]
[379168962,1755174640766,-495.9,0.00016438,2]
[379168963,1755174640776,-427.16410136,0.00016438,2]
[379168964,1755174640787,-460.0,0.00016438,2]
[379168965,1755174640798,-460.0,0.00016438,2]
[379168966,1755174640809,-1264.43,0.00016438,2]
[379168967,1755174640821,-1090.9,0.00016438,2]
[379168968,1755174640832,-460.0,0.00016438,2]
[379168969,1755174640842,-460.0,0.00016438,2]
[379168970,1755174640852,-1330.18,0.00016438,2]
[379168971,1755174640863,-605.38097869,0.00016438,2]
[379168972,1755174640876,-803.31,0.00016438,2]
[379168973,1755174640894,-482.25842071,0.00016438,2]
[379168974,1755174640906,-1198.77,0.00016438,2]
[379168975,1755174640919,-460.0,0.00016438,2]
[379168976,1755174640930,-460.0,0.00016438,2]
[379168977,1755174640943,-816.51,0.00016438,2]
[379168978,1755174640955,-739.39,0.00016438,2]
[379168979,1755174640967,-460.0,0.00016438,2]
[379168980,1755174640977,-460.0,0.00016438,2]
[379168981,1755174640988,-460.0,0.00016438,2]
[379168982,1755174641000,-2531.06,0.00016438,2]
[379168983,1755174641011,-460.0,0.00016438,2]
[379168984,1755174641022,-474.84177542,0.00016438,2]
[379168985,1755174641140,-255.91822458,0.00016438,2]
[379168986,1755174641150,-4218.42,0.00016438,2]
[379168987,1755174641160,-460.0,0.00016438,2]
[379168988,1755174641170,-730.22,0.00016438,2]
[379168989,1755174641180,-1040.34,0.00016438,2]
[379168990,1755174641189,-399.22437161,0.00016438,2]
[379168991,1755174641199,-460.0,0.00016438,2]
[379168992,1755174641209,-460.0,0.00016438,2]
[379168993,1755174641219,-1838.81,0.00016438,2]
[379168994,1755174641229,-11316.23,0.00016438,2]
[379168995,1755174641239,-707.14,0.00016438,2]
[379168996,1755174641249,-460.0,0.00016438,2]
[379168997,1755174641260,-460.0,0.00016438,2]
[379168998,1755174641270,-460.0,0.00016438,2]
[379168999,1755174641280,-1470.48,0.00016438,2]
[379169000,1755174641290,-1248.34,0.00016438,2]
[379169001,1755174641299,-1641.78,0.00016438,2]
[379169002,1755174641310,-460.0,0.00016438,2]
[379169003,1755174641321,-1170.18,0.00016438,2]
[379169004,1755174641331,-460.0,0.00016438,2]
[379169005,1755174641341,-460.0,0.00016438,2]
[379169006,1755174641351,-460.0,0.00016438,2]
[379169007,1755174641361,-460.0,0.00016438,2]
[379169008,1755174641371,-460.0,0.00016438,2]
[379169009,1755174641381,-839.2,0.00016438,2]
[379169010,1755174641398,-764.77,0.00016438,2]
[379169011,1755174641408,-460.0,0.00016438,2]
[379169012,1755174641417,-460.0,0.00016438,2]
[379169013,1755174641427,-460.0,0.00016438,2]
[379169014,1755174641437,-1688.64,0.00016438,2]
[379169015,1755174641446,-2686.62,0.00016438,2]
[379169016,1755174641455,-1787.7786749,0.00016438,2]
[379169017,1755174641467,-123.1313251,0.00016438,2]
[379169018,1755174641477,-540.93940748,0.00016438,2]
[379169019,1755174641489,-1678.53547047,0.00016438,2]
[379169020,1755174641501,-1110.87512205,0.00016438,2]
[379169021,1755174641511,-1893.57,0.00016438,2]
[379169022,1755174641520,-1545.97,0.00016438,2]
[379169023,1755174641530,-460.0,0.00016438,2]
[379169024,1755174641539,-789.58,0.00016438,2]
[379169025,1755174641548,-460.0,0.00016438,2]
[379169026,1755174641557,-1461.43,0.00016438,2]
[379169027,1755174641567,-460.0,0.00016438,2]
[379169028,1755174641576,-942.38,0.00016438,2]
[379169029,1755174641585,-467.5527466,0.00016438,2]
[379169030,1755174641594,-686.73,0.00016438,2]
[379169031,1755174641603,-646.29,0.00016438,2]
[379169032,1755174641614,-460.0,0.00016438,2]
[379169033,1755174641623,-460.0,0.00016438,2]
[379169034,1755174641638,-873.31,0.00016438,2]
[379169035,1755174641647,-270.62786174,0.00016438,2]
[379169036,1755174641657,-460.0,0.00016438,2]
[379169038,1755174641666,-460.0,0.00016438,2]
[379169039,1755174641675,-460.0,0.00016438,2]
[379169040,1755174641685,-237.74197553,0.00016438,2]
[379169041,1755174641695,-460.0,0.00016438,2]
[379169042,1755174641704,-489.42,0.00016438,2]
[379169043,1755174641714,-460.0,0.00016438,2]
[379169044,1755174641723,-646.38,0.00016438,2]
[379169045,1755174641733,-460.0,0.00016438,2]
[379169046,1755174641743,-7260.37,0.00016438,2]
[379169047,1755174641754,-998.5,0.00016438,2]
[379169048,1755174641764,-497.61,0.00016438,2]
[379169049,1755174641775,-735.34,0.00016438,2]
[379169050,1755174641785,-514.43388959,0.00016438,2]
[379169051,1755174641795,-978.06,0.00016438,2]
[379169052,1755174641805,-460.0,0.00016438,2]
[379169053,1755174641816,-991.59,0.00016438,2]
[379169054,1755174641826,-460.0,0.00016438,2]
[379169055,1755174641836,-460.0,0.00016438,2]
[379169056,1755174641847,-460.0,0.00016438,2]
[379169057,1755174641858,-379.82459895,0.00016438,2]
[379169058,1755174641868,-180.40030372,0.00016438,2]
[379169059,1755174641880,-1259.45,0.00016438,2]
[379169060,1755174641898,-460.0,0.00016438,2]
[379169061,1755174641907,-955.54,0.00016438,2]
[379169062,1755174641920,-460.0,0.00016438,2]
[379169063,1755174641930,-1867.7,0.00016438,2]
[379169064,1755174641940,-797.8,0.00016438,2]
[379169065,1755174641949,-3586.53,0.00016438,2]
[379169066,1755174641959,-488.76,0.00016438,2]
[379169067,1755174641969,-460.0,0.00016438,2]
[379169068,1755174641979,-545.45,0.00016438,2]
[379169069,1755174641989,-460.0,0.00016438,2]
[379169070,1755174641999,-464.45,0.00016438,2]
[379169071,1755174642010,-638.11,0.00016438,2]
[379169072,1755174642021,-460.0,0.00016438,2]
[379169073,1755174642031,-460.0,0.00016438,2]
[379169074,1755174642040,-1077.68,0.00016438,2]
[379169075,1755174642050,-1120.93,0.00016438,2]
[379169076,1755174642061,-460.0,0.00016438,2]
[379169077,1755174642071,-460.0,0.00016438,2]
[379169078,1755174642082,-460.0,0.00016438,2]
[379169079,1755174642093,-460.0,0.00016438,2]
[379169080,1755174642103,-460.0,0.00016438,2]
[379169081,1755174642113,-937.71,0.00016438,2]
[379169082,1755174642124,-460.0,0.00016438,2]
[379169083,1755174642141,-7816.73,0.00016438,2]
[379169084,1755174642151,-460.0,0.00016438,2]
[379169085,1755174642163,-590.74451345,0.00016438,2]
[379169086,1755174642173,-460.0,0.00016438,2]
[379169087,1755174642183,-460.0,0.00016438,2]
[379169088,1755174642193,-460.0,0.00016438,2]
[379169089,1755174642203,-2818.82,0.00016438,2]
[379169090,1755174642213,-168.60759206,0.00016438,2]
[379169091,1755174642223,-504.3,0.00016438,2]
[379169092,1755174642234,-460.0,0.00016438,2]
[379169093,1755174642244,-460.0,0.00016438,2]
[379169094,1755174642254,-656.3,0.00016438,2]
[379169095,1755174642265,-460.0,0.00016438,2]
[379169096,1755174642275,-460.0,0.00016438,2]
[379169097,1755174642284,-500.0,0.00016473,2]
[379169098,1755174642294,-500.0,0.00016473,2]
[379169099,1755174642303,-500.0,0.00016473,2]
[379169100,1755174642313,-500.23855586,0.00016473,2]
[379169101,1755174642323,-500.0,0.00016473,2]
[379169102,1755174642332,-502.24473519,0.00016473,2]
[379169104,1755174642342,-500.0,0.00016473,2]
[379169105,1755174642351,-500.0,0.00016473,2]
[379169106,1755174642361,-500.0,0.00016473,2]
[379169107,1755174642370,-500.0,0.00016473,2]
[379169108,1755174642379,-1000.0,0.00016511,2]
[379169109,1755174642398,-473.81,0.00016511,2]
[379169110,1755174642410,-13.08757737,0.00016602,2]
[379169112,1755174642510,2897.96332512,0.00016428,2]
[379169152,1755174646173,-1248.79,0.00016438,2]
[379169154,1755174646184,-460.0,0.00016438,2]
[379169156,1755174646195,-1331.68549701,0.00016602,2]
[379169158,1755174646209,-151.0,0.00016611,2]
[379169160,1755174646220,-597.248821,0.00016611,2]
[379169162,1755174646231,-597.248821,0.00016611,2]
[379169164,1755174646242,-600.97,0.00016611,2]
[379169166,1755174646253,-460.0,0.00016611,2]
[379169168,1755174646264,-460.0,0.00016611,2]
[379169170,1755174646274,-574.89,0.00016611,2]
[379169172,1755174646284,-460.0,0.00016611,2]
[379169174,1755174646295,-460.0,0.00016611,2]
[379169176,1755174646304,-460.0,0.00016611,2]
[379169178,1755174646314,-5907.36645688,0.00016612,2]
[379169204,1755174646754,-40906.82595849,0.00016612,2]
[379169291,1755174674207,2100.0,0.0001478,2]
[379169292,1755174677933,2100.0,0.0001615,2]
[379169401,1755174937327,2289.28566905,0.00016338,2]
[379169402,1755174957037,169.04797875,0.00016258,2]
[379169407,1755175143048,300.0,0.00016427,2]
[379169408,1755175170592,143.70302708,0.00016337,2]
[379169409,1755175170614,6784.19593555,0.00016337,2]
[379169410,1755175176876,3215.80406445,0.00016338,2]
[379169411,1755175176900,10000.0,0.00016338,2]
[379169412,1755175176922,10000.0,0.00016338,2]
[379169413,1755175176944,10000.0,0.00016338,2]
[379169414,1755175176966,10000.0,0.00016338,2]
[379169415,1755175176989,10000.0,0.00016338,2]
[379169416,1755175177013,10000.0,0.00016338,2]
[379169417,1755175177035,10000.0,0.00016338,2]
[379169418,1755175177059,10000.0,0.00016338,2]
[379169419,1755175177084,10000.0,0.00016338,2]
[379169420,1755175177107,10000.0,0.00016338,2]
[379169421,1755175177131,10000.0,0.00016338,2]
[379169422,1755175177155,10000.0,0.00016338,2]
[379169423,1755175177177,10000.0,0.00016338,2]
[379169424,1755175177200,10000.0,0.00016338,2]
[379169425,1755175177222,10000.0,0.00016338,2]
[379169426,1755175177244,10000.0,0.00016338,2]
[379169427,1755175177269,10000.0,0.00016338,2]
[379169428,1755175177291,10000.0,0.00016338,2]
[379169429,1755175177314,10000.0,0.00016338,2]
[379169430,1755175177336,10000.0,0.00016338,2]
[379169431,1755175177358,10000.0,0.00016338,2]
[379169432,1755175177380,10000.0,0.00016338,2]
[379169433,1755175177403,10000.0,0.00016338,2]
[379169434,1755175177426,10000.0,0.00016338,2]
[379169435,1755175177449,10000.0,0.00016338,2]
[379169436,1755175177472,10000.0,0.00016338,2]
[379169437,1755175177495,10000.0,0.00016338,2]
[379169438,1755175177525,10000.0,0.00016338,2]
[379169439,1755175177547,10000.0,0.00016338,2]
[379169440,1755175177570,10000.0,0.00016338,2]
[379169441,1755175177594,10000.0,0.00016338,2]
[379169442,1755175177615,10000.0,0.00016338,2]
[379169443,1755175177637,10000.0,0.00016338,2]
[379169444,1755175177659,10000.0,0.00016338,2]
[379169445,1755175177680,10000.0,0.00016338,2]
[379169446,1755175177702,10000.0,0.00016338,2]
[379169447,1755175177724,6784.19593555,0.00016338,2]
[379169448,1755175194355,3215.80406445,0.00016428,2]
[379169449,1755175194380,1784.19593555,0.00016428,2]
[379169451,1755175202382,300.0,0.00016427,2]
[379169452,1755175202443,300.0,0.00016427,2]
[379169453,1755175202744,300.0,0.00016427,2]
[379169454,1755175203000,159.0,0.00016427,2]
[379169455,1755175206437,300.0,0.00016427,2]
[379169456,1755175207663,1200.0,0.00016427,2]
[379169457,1755175210242,5000.0,0.00016428,2]
[379169458,1755175226992,656.80406445,0.00016428,2]
[379169459,1755175227018,4343.19593555,0.00016428,2]
[379169460,1755175238217,353.39090146,0.00016328,2]
[379169461,1755175238615,353.39090146,0.0001633,2]
[379169462,1755175240744,353.39090146,0.00016333,2]
[379169463,1755175241257,353.39090146,0.00016335,2]
[379169464,1755175241603,353.39090146,0.00016337,2]
[379169465,1755175243110,3889.84955715,0.00016428,2]
[379169466,1755175243135,1110.15044285,0.00016428,2]
[379169467,1755175259724,5000.0,0.00016428,2]
[379169468,1755175263611,300.0,0.00016427,2]
[379169469,1755175278403,2496.51669531,0.00016338,2]
[379169470,1755175289077,1093.33286184,0.00015438,2]
[379169471,1755175289109,8391.14914336,0.00015438,2]
[379169473,1755175302164,1200.0,0.00016427,2]
[379169474,1755175307037,408.85085664,0.00016,2]
[379169475,1755175307061,10000.0,0.00016,2]
[379169476,1755175307085,10000.0,0.00016,2]
[379169477,1755175307115,10000.0,0.00016,2]